bitfinex/quotes_ETHUSD_20250923
["timestamp","ask_amount","ask_price","bid_price","bid_amount"]
[1758593406153,0.98013536,4180.8,4180.7,4.043]
[1758593406355,3.06548672,4180.8,4180.7,4.043]
[1758593406577,3.0,4182.3,4180.7,4.043]
[1758593406821,3.0,4182.8,4180.7,4.043]
[1758593406822,0.4391,4182.1,4180.8,4.05601886]
[1758593406988,0.4391,4182.1,4181.5,3.792]
[1758593407197,0.2345,4182.0,4181.7,0.792]
[1758593407375,0.6736,4182.0,4181.9,0.792]
[1758593407703,0.2345,4182.0,4181.9,0.9112]
[1758593408305,0.2345,4182.0,4181.9,4.9542]
[1758593408607,0.6736,4182.0,4181.9,4.1612]
[1758593408905,3.06480038,4182.0,4181.9,4.1612]
[1758593409131,3.61038422,4182.0,4181.9,4.1612]
[1758593409300,3.06480038,4182.0,4181.9,4.1612]
[1758593410980,3.06480038,4182.0,4181.9,0.1192]
[1758593411734,0.4391,4182.3,4181.9,0.1192]
[1758593411949,0.2345,4182.3,4182.0,4.042]
[1758593412081,0.4391,4182.6,4182.0,4.042]
[1758593412082,2.39091776,4182.5,4182.2,0.1192]
[1758593412414,0.4391,4182.8,4182.3,4.042]
[1758593412616,0.4391,4183.0,4182.7,0.1192]
[1758593412781,2.39067576,4183.0,4182.7,0.1192]
[1758593412980,0.4391,4182.9,4182.7,0.1192]
[1758593413205,0.6736,4182.9,4182.7,0.1192]
[1758593413433,0.2345,4182.8,4182.7,0.1192]
[1758593413594,2.62524304,4182.8,4182.7,0.1192]
[1758593414428,0.2345,4182.8,4182.7,0.1192]
[1758593414825,3.06434304,4182.8,4182.7,0.1192]
[1758593415144,0.6736,4182.8,4182.7,0.1192]
[1758593415699,3.06434304,4182.8,4182.7,0.1192]
[1758593415949,3.60984191,4182.8,4182.7,0.1192]
[1758593417234,4.11653148,4182.8,4182.7,0.1192]
[1758593420431,4.11753148,4182.8,4182.7,0.1192]
[1758593420705,4.75744792,4182.8,4182.7,0.1192]
[1758593421124,4.31834792,4182.8,4182.7,0.1192]
[1758593421322,4.13623148,4182.8,4182.7,0.1192]
[1758593422258,4.77614792,4182.8,4182.7,0.1192]
[1758593422754,4.13623148,4182.8,4182.7,0.1192]
[1758593423050,4.77614792,4182.8,4182.7,0.1192]
[1758593423252,3.44393148,4182.8,4182.7,0.1192]
[1758593423570,4.31474994,4182.8,4182.7,0.1192]
[1758593423871,4.77254994,4182.8,4182.7,0.1192]
[1758593424025,4.31474994,4182.8,4182.7,0.1192]
[1758593424229,4.13753148,4182.8,4182.7,0.1192]
[1758593425124,4.35820287,4182.8,4182.7,0.1192]
[1758593425355,5.20828898,4182.8,4182.7,0.1192]
[1758593425558,4.75048898,4182.8,4182.7,0.1192]
[1758593426164,4.35820287,4182.8,4182.7,0.1192]
[1758593427264,5.17553204,4182.8,4182.7,0.1192]
[1758593427444,3.90040287,4182.8,4182.7,0.1192]
[1758593427968,4.35820287,4182.8,4182.7,0.1192]
[1758593428176,5.76602996,4182.8,4182.7,0.1192]
[1758593428473,5.63333204,4182.8,4182.7,0.1192]
[1758593428776,3.90040287,4182.8,4182.7,0.1192]
[1758593428983,0.50768957,4182.8,4182.7,0.1192]
[1758593429144,1.57861362,4182.8,4182.7,1.597]
[1758593429349,0.50768957,4182.8,4182.7,1.597]
[1758593429549,0.50768957,4182.8,4182.7,1.620908]
[1758593430282,1.27612917,4183.3,4182.7,1.620908]
[1758593430283,0.001,4183.3,4183.0,6.18262873]
[1758593430583,0.001,4183.3,4183.2,6.18251443]
[1758593430985,0.001,4183.3,4183.2,6.86831443]
[1758593432584,0.001,4183.3,4183.2,10.90731443]
[1758593433084,0.001,4183.3,4183.2,6.86831443]
[1758593433282,0.001,4183.3,4183.2,12.97431443]
[1758593435383,0.001,4183.3,4183.2,10.90731443]
[1758593435551,0.001,4183.3,4183.2,19.43431443]
[1758593436162,0.001,4183.3,4183.2,6.86831443]
[1758593436482,0.001,4183.3,4183.2,19.43331443]
[1758593438389,0.001,4183.3,4183.2,10.11431443]
[1758593438683,0.001,4183.3,4183.2,12.97231443]
[1758593438984,0.001,4183.3,4183.2,9.97231443]
[1758593439150,0.001,4183.3,4183.2,6.86831443]
[1758593439349,0.001,4183.3,4183.2,12.97231443]
[1758593439956,0.001,4183.3,4183.2,6.86831443]
[1758593440152,0.001,4183.3,4183.2,13.09151443]
[1758593440710,0.001,4183.3,4183.2,6.30171443]
[1758593441024,0.001,4183.3,4183.2,4.1572]
[1758593441322,0.2368,4183.3,4183.2,7.0152]
[1758593441820,0.2368,4183.3,4183.2,3.1192]
[1758593441990,0.001,4183.3,4183.2,9.2232]
[1758593442194,0.001,4183.3,4183.2,12.40571443]
[1758593442408,0.001,4183.3,4183.2,10.0152]
[1758593443103,0.2368,4183.3,4183.2,7.9492]
[1758593443308,0.2368,4183.3,4183.2,10.0152]
[1758593443909,0.6946,4183.3,4183.2,4.1572]
[1758593444219,0.54530453,4183.3,4183.2,4.1572]
[1758593444415,0.2368,4183.3,4183.2,4.1572]
[1758593444722,3.08505729,4183.3,4183.2,4.9492]
[1758593445290,3.08505729,4183.3,4183.2,4.1572]
[1758593445690,0.6946,4183.3,4183.2,4.1572]
[1758593446727,3.08505729,4183.3,4183.2,4.1572]
[1758593447029,0.6946,4183.3,4183.2,4.1572]
[1758593447820,0.001,4183.3,4183.2,4.1572]
[1758593448019,0.24,4183.3,4183.2,4.1572]
[1758593449224,2.63045729,4183.3,4183.2,4.1572]
[1758593449418,3.09625729,4183.3,4183.2,4.1572]
[1758593449995,0.7058,4183.3,4183.2,0.1192]
[1758593450201,0.7058,4183.3,4183.2,4.1572]
[1758593450202,3.40587685,4183.3,4183.2,4.1572]
[1758593450402,3.40587685,4183.3,4183.2,0.1192]
[1758593450604,3.91503804,4183.3,4183.2,0.1192]
[1758593452635,2.94007685,4183.3,4183.2,0.1192]
[1758593452938,2.70107685,4183.3,4183.2,0.1192]
[1758593453238,3.40587685,4183.3,4183.2,0.1192]
[1758593459628,2.94007685,4183.3,4183.2,0.1192]
[1758593460028,2.70107685,4183.3,4183.2,0.1192]
[1758593460355,3.40587685,4183.3,4183.2,0.1192]
[1758593461660,2.94007685,4183.3,4183.2,0.1192]
[1758593461858,0.31061956,4183.3,4183.2,0.1192]
[1758593462022,0.001,4183.3,4183.2,1.52480514]
[1758593462227,0.001,4183.3,4183.2,6.91531957]
[1758593462428,0.001,4183.3,4183.2,6.89141443]
[1758593462823,0.001,4183.3,4183.2,12.99641443]
[1758593470355,0.001,4183.3,4183.2,6.89141443]
[1758593470695,0.001,4183.3,4183.2,12.99441443]
[1758593471078,0.001,4183.3,4183.2,19.45241443]
[1758593472196,0.001,4183.3,4183.2,19.57161443]
[1758593475675,0.001,4183.3,4183.2,15.53461443]
[1758593475879,0.001,4183.3,4183.2,7.01061443]
[1758593476302,0.001,4183.3,4183.2,19.57061443]
[1758593481329,0.001,4183.8,4183.7,3.18222874]
[1758593481628,0.001,4183.8,4183.7,10.21822874]
[1758593481827,0.001,4183.8,4183.7,11.00242874]
[1758593485137,0.001,4183.8,4183.7,11.48473218]
[1758593485342,0.001,4183.8,4183.7,11.60204482]
[1758593485506,1e-08,4184.9,4184.8,6.18160045]
[1758593485730,1e-08,4184.9,4184.8,12.28360045]
[1758593486059,1e-08,4184.9,4184.8,12.83960045]
[1758593486358,1e-08,4184.9,4184.8,13.06780045]
[1758593486865,1e-08,4184.9,4184.8,12.83960045]
[1758593487062,1e-08,4184.9,4184.8,12.40280045]
[1758593489831,1e-08,4184.9,4184.8,13.06780045]
[1758593493529,1e-08,4184.9,4184.8,12.83960045]
[1758593496066,0.00100001,4184.9,4184.8,12.83960045]
[1758593496394,0.00100001,4184.9,4184.8,12.40280045]
[1758593496561,0.68380001,4184.9,4184.8,11.60880045]
[1758593496947,0.68380001,4184.9,4184.8,5.50880045]
[1758593497139,0.68380001,4184.9,4184.8,11.60880045]
[1758593497735,0.68380001,4184.9,4184.8,12.40080045]
[1758593497939,0.68380001,4184.9,4184.8,11.60880045]
[1758593498679,0.68380001,4184.9,4184.8,12.40080045]
[1758593503969,0.00100001,4184.9,4184.8,12.40080045]
[1758593504289,0.00100001,4184.9,4184.8,13.06580045]
[1758593506455,0.00100001,4184.9,4184.8,12.83760045]
[1758593506903,0.00100001,4184.9,4184.8,12.40080045]
[1758593507580,0.00100001,4184.9,4184.8,13.08750045]
[1758593510184,0.001,4185.4,4184.8,13.08750045]
[1758593510185,0.001,4185.4,4184.9,6.18154335]
[1758593510503,0.001,4185.4,4185.3,6.18131498]
[1758593510659,0.001,4185.4,4185.3,10.33451498]
[1758593511063,0.02,4185.9,4185.3,11.02121498]
[1758593511263,0.2637,4186.9,4186.5,0.792]
[1758593511501,0.2637,4186.9,4186.8,3.18045896]
[1758593511502,0.02,4186.9,4186.8,3.18045896]
[1758593511766,0.02,4186.9,4186.8,7.33365896]
[1758593511990,0.7084,4186.9,4186.8,7.33365896]
[1758593513275,0.7084,4186.9,4186.8,5.41653309]
[1758593513875,0.7084,4186.9,4186.8,7.80499205]
[1758593514989,0.7094,4186.9,4186.8,7.80499205]
[1758593516039,0.021,4186.9,4186.8,7.80499205]
[1758593516182,0.021,4186.9,4186.8,11.26399205]
[1758593516385,0.021,4186.9,4186.8,11.49169205]
[1758593517821,1e-08,4186.9,4186.8,11.49169205]
[1758593519713,1e-08,4186.9,4186.8,6.77099205]
[1758593519891,0.24370001,4186.9,4186.8,12.07599205]
[1758593520075,0.68840001,4186.9,4186.8,12.07599205]
[1758593520709,0.68840001,4186.9,4186.8,11.60465896]
[1758593520907,0.68840001,4186.9,4186.8,5.50765896]
[1758593521241,0.68840001,4186.9,4186.8,11.60465896]
[1758593521242,1e-08,4186.9,4186.8,11.60465896]
[1758593521591,0.24370001,4186.9,4186.8,12.39665896]
[1758593521800,0.68840001,4186.9,4186.8,12.39665896]
[1758593522482,0.24370001,4186.9,4186.8,12.88018294]
[1758593522686,1e-08,4186.9,4186.8,12.88018294]
[1758593523614,0.68840001,4186.9,4186.8,12.88018294]
[1758593524018,0.68840001,4186.9,4186.8,12.87918294]
[1758593525629,0.24370001,4186.9,4186.8,12.87918294]
[1758593529621,0.68840001,4186.9,4186.8,12.87918294]
[1758593530107,0.24370001,4186.9,4186.8,12.87918294]
[1758593530528,0.68840001,4186.9,4186.8,12.87918294]
[1758593531824,0.24370001,4186.9,4186.8,12.87918294]
[1758593533135,1e-08,4186.9,4186.8,12.87918294]
[1758593534835,1e-08,4186.9,4186.8,12.88318294]
[1758593535550,0.23100001,4186.9,4186.8,7.0112]
[1758593535854,0.68820001,4186.9,4186.8,0.1232]
[1758593536254,0.68820001,4186.9,4186.8,4.1542]
[1758593536416,0.68820001,4186.9,4186.8,4.9462]
[1758593536845,3.07660193,4186.9,4186.8,4.9462]
[1758593537043,0.68820001,4186.9,4186.8,4.9462]
[1758593537417,3.07660193,4186.9,4186.8,4.9462]
[1758593537749,0.68820001,4186.9,4186.8,4.9462]
[1758593537951,3.07660193,4186.9,4186.8,4.9462]
[1758593538349,0.68820001,4186.9,4186.8,4.9462]
[1758593538739,3.07660193,4186.9,4186.8,4.9462]
[1758593539142,3.62308743,4186.9,4186.8,0.1232]
[1758593539342,3.07660193,4186.9,4186.8,4.1542]
[1758593540827,3.07660193,4186.9,4186.8,0.1232]
[1758593541161,3.29854043,4186.9,4186.8,0.1232]
[1758593541831,6.29854043,4186.9,4186.8,0.1232]
[1758593542030,6.80962387,4186.9,4186.8,0.1232]
[1758593542242,9.3854898,4186.9,4186.8,1e-08]
[1758593542444,9.38539685,4186.9,4186.8,1e-08]
[1758593542646,28.88962517,4186.9,4186.8,1e-08]
[1758593542868,5.38845896,4186.8,4186.7,1e-08]
[1758593543046,6.12142556,4186.8,4186.7,1e-08]
[1758593543236,9.26306316,4186.8,4186.7,1e-08]
[1758593543432,9.39596104,4186.8,4186.7,1e-08]
[1758593544277,9.26306316,4186.8,4186.7,1e-08]
[1758593545356,8.75203506,4186.8,4186.3,0.004]
[1758593545558,8.75203506,4186.8,4185.5,2.064]
[1758593545559,2.38937207,4185.2,4185.1,2.085]
[1758593545866,2.38937207,4185.2,4185.1,5.5182]
[1758593545867,3.08817207,4185.2,4185.1,5.5182]
[1758593546070,2.63597207,4185.2,4185.1,5.5182]
[1758593546233,3.08817207,4185.2,4185.1,5.5182]
[1758593546869,0.6988,4185.2,4185.1,5.5182]
[1758593547087,0.2466,4185.2,4185.1,5.5182]
[1758593547368,3.08817207,4185.2,4185.1,5.5182]
[1758593547966,2.63597207,4185.2,4185.1,5.5182]
[1758593548972,2.63597207,4185.2,4185.1,0.1392]
[1758593549152,3.39698928,4185.2,4185.1,4.1712]
[1758593549337,3.39698928,4185.2,4185.1,0.1392]
[1758593549793,2.69818928,4185.2,4185.1,0.1392]
[1758593549984,2.94478928,4185.2,4185.1,0.1392]
[1758593550886,6.39698928,4185.2,4185.1,0.1392]
[1758593552684,12.68099021,4185.2,4185.1,0.1392]
[1758593553275,12.68099021,4185.2,4185.1,0.1432]
[1758593559667,2.38965756,4184.7,4184.6,0.004]
[1758593559892,15.43558309,4184.7,4184.6,0.004]
[1758593560105,9.39818216,4184.7,4184.6,0.004]
[1758593562625,9.85038216,4184.7,4184.6,0.004]
[1758593566926,10.07157498,4184.7,4184.6,0.004]
[1758593569329,10.58195188,4184.7,4184.6,0.004]
[1758593572354,2.389886,4184.3,4184.2,0.004]
[1758593572650,13.57150404,4184.3,4184.2,0.004]
[1758593572808,14.24110404,4184.3,4184.2,0.004]
[1758593573513,0.86461711,4184.3,4184.2,0.004]
[1758593573713,9.40545665,4184.3,4184.2,0.8245]
[1758593574619,9.18426383,4184.3,4184.2,0.8245]
[1758593574937,7.01619822,4184.3,4184.2,0.8245]
[1758593575840,9.40608422,4184.3,4184.2,0.8245]
[1758593576948,0.73219729,4184.3,4184.2,0.8245]
[1758593577284,3.12208329,4184.3,4184.2,0.8245]
[1758593577769,3.12208329,4184.3,4184.2,0.5844]
[1758593578126,3.12208329,4184.3,4184.2,0.1232]
[1758593579466,4.37594144,4184.3,4184.2,0.1232]
[1758593580169,4.50916056,4184.3,4184.2,0.1232]
[1758593580463,4.27366056,4184.3,4184.2,0.1232]
[1758593580671,4.14044144,4184.3,4184.2,0.1232]
[1758593582463,4.94327966,4184.3,4184.2,0.1232]
[1758593582666,8.97627966,4184.3,4184.2,0.1232]
[1758593583168,8.97627966,4184.3,4184.2,0.004]
[1758593583583,12.82599426,4184.3,4184.2,0.004]
[1758593583770,11.97627966,4184.3,4184.2,0.004]
[1758593583976,12.82886655,4184.3,4184.2,0.004]
[1758593584284,17.82618059,4184.3,4184.2,0.004]
[1758593584775,18.26028059,4184.3,4184.2,0.004]
[1758593585685,18.89960095,4184.3,4184.2,0.004]
[1758593586060,18.26023014,4184.3,4184.2,0.004]
[1758593586575,18.89953963,4184.3,4184.2,0.004]
[1758593586971,18.26023014,4184.3,4184.2,0.004]
[1758593587948,18.89952216,4184.3,4184.2,0.004]
[1758593590363,18.26023014,4184.3,4184.2,0.004]
[1758593590560,14.86652216,4184.3,4184.2,0.004]
[1758593590761,18.89952216,4184.3,4184.2,0.004]
[1758593591501,18.26023014,4184.3,4184.2,0.004]
[1758593595825,0.73219729,4184.3,4184.2,0.1232]
[1758593595984,0.1232,4184.5,4184.2,0.8051]
[1758593595985,2.38977269,4184.5,4184.2,0.8051]
[1758593596191,0.001,4184.6,4184.3,0.6819]
[1758593596719,0.001,4184.6,4184.5,0.1192]
[1758593597243,0.001,4184.6,4184.5,0.8011]
[1758593601216,8.91377058,4184.6,4184.5,0.1192]
[1758593601382,8.67471559,4184.6,4184.5,0.1192]
[1758593601883,6.28500093,4184.6,4184.5,0.1192]
[1758593602097,8.67471559,4184.6,4184.5,0.1192]
[1758593603204,15.95361559,4184.6,4184.5,0.1192]
[1758593603407,15.95361559,4184.6,4184.2,0.004]
[1758593603408,2.389886,4184.3,4184.2,0.004]
[1758593603582,16.43813404,4184.3,4184.2,0.1232]
[1758593603789,17.11603404,4184.3,4184.2,0.1232]
[1758593604095,19.48912175,4184.3,4184.2,0.1232]
[1758593604708,13.20512082,4184.3,4184.2,0.1232]
[1758593606402,20.39805579,4184.3,4184.2,0.004]
[1758593606729,20.39805579,4184.3,4184.1,0.024]
[1758593606730,2.50914311,4184.2,4184.1,0.024]
[1758593606931,5.81716279,4184.2,4184.1,0.024]
[1758593607230,6.49506279,4184.2,4184.1,0.024]
[1758593607922,2.39011448,4183.9,4183.8,0.004]
[1758593608114,15.81364295,4183.9,4183.8,0.004]
[1758593608322,15.81364295,4183.9,4183.7,0.004]
[1758593608323,5.39017161,4183.8,4183.7,0.004]
[1758593608493,6.37455369,4183.8,4183.7,0.004]
[1758593608685,7.05245369,4183.8,4183.7,0.004]
[1758593608885,9.49529129,4183.8,4183.7,0.004]
[1758593610610,9.49501791,4183.8,4183.7,0.004]
[1758593616670,9.36208294,4183.8,4183.7,0.004]
[1758593617662,8.85148623,4183.8,4183.7,0.004]
[1758593621333,15.91148623,4183.8,4183.7,0.004]
[1758593622157,15.48048623,4183.8,4183.7,0.004]
[1758593623781,15.48048623,4183.8,4183.7,0.6859]
[1758593623782,2.39017161,4183.8,4183.7,0.6859]
[1758593623932,2.39017161,4183.8,4183.7,0.8051]
[1758593624884,2.39017161,4183.8,4183.7,0.5594]
[1758593625378,2.39017161,4183.8,4183.7,0.8051]
[1758593626538,2.39017161,4183.8,4183.7,0.5594]
[1758593626883,10.60229824,4183.8,4183.7,0.1232]
[1758593627251,10.60329824,4183.8,4183.7,0.1232]
[1758593627452,6.57229824,4183.8,4183.7,0.7983]
[1758593627773,5.39117161,4183.8,4183.7,0.7983]
[1758593630058,5.39117161,4183.8,4183.7,0.1232]
[1758593630777,5.39117161,4183.8,4183.7,0.7983]
[1758593631871,5.39117161,4183.8,4183.7,0.5626]
[1758593633080,5.39117161,4183.8,4183.7,0.1232]
[1758593633278,5.61282196,4183.8,4183.7,0.1232]
[1758593633592,6.83958363,4183.8,4183.7,0.7983]
[1758593633746,5.61282196,4183.8,4183.7,0.7983]
[1758593633946,5.39117161,4183.8,4183.7,0.7983]
[1758593635174,0.001,4183.8,4183.7,0.7983]
[1758593636595,2.39117161,4183.8,4183.7,0.7983]
[1758593636974,0.001,4183.8,4183.7,0.7983]
[1758593638678,0.001,4183.8,4183.7,1.5903]
[1758593641916,0.001,4183.8,4183.7,0.1232]
[1758593642080,2.39117161,4183.8,4183.7,0.1232]
[1758593642900,3.57566484,4183.8,4183.7,0.1232]
[1758593643099,6.79720153,4183.8,4183.7,0.1232]
[1758593643398,10.82620153,4183.8,4183.7,0.1232]
[1758593644978,9.92166484,4183.8,4183.7,0.1232]
[1758593645384,10.15536484,4183.8,4183.7,0.1232]
[1758593646174,9.92166484,4183.8,4183.7,0.1232]
[1758593646500,5.89266484,4183.8,4183.7,0.1232]
[1758593646702,9.92166484,4183.8,4183.7,0.1232]
[1758593648330,9.92166484,4183.8,4183.7,0.004]
[1758593648630,11.46968497,4183.8,4183.7,0.004]
[1758593649712,7.44068497,4183.8,4183.7,0.004]
[1758593649913,11.02038497,4183.8,4183.7,0.004]
[1758593650231,11.46968497,4183.8,4183.7,0.004]
[1758593651117,11.46965926,4183.8,4183.7,0.004]
[1758593652438,18.52965926,4183.8,4183.7,0.004]
[1758593653516,18.52963005,4183.8,4183.7,0.004]
[1758593656302,13.81763005,4183.8,4183.7,0.004]
[1758593656505,17.84563005,4183.8,4183.7,0.004]
[1758593656917,17.72794925,4183.8,4183.7,0.004]
[1758593657113,17.67576484,4183.8,4183.7,0.004]
[1758593659547,18.54018805,4183.8,4183.7,0.004]
[1758593661544,18.03001866,4183.8,4183.7,0.004]
[1758593661749,18.54021332,4183.8,4183.7,0.004]
[1758593662250,18.54021587,4183.8,4183.7,0.004]
[1758593662644,18.51491587,4183.8,4183.7,0.004]
[1758593662861,18.63411587,4183.8,4183.7,0.004]
[1758593663653,25.47600621,4183.8,4183.7,0.004]
[1758593664260,25.47598467,4183.8,4183.7,0.004]
[1758593664464,21.44798467,4183.8,4183.7,0.004]
[1758593664753,27.54298467,4183.8,4183.7,0.004]
[1758593666332,20.03129433,4183.8,4183.7,0.004]
[1758593666658,26.3192827,4183.8,4183.7,0.004]
[1758593669592,26.5584827,4183.8,4183.7,0.004]
[1758593669950,24.4904827,4183.8,4183.7,0.004]
[1758593670880,13.81709433,4183.8,4183.7,0.004]
[1758593671081,13.6995828,4183.8,4183.7,0.8108]
[1758593671297,13.47817161,4183.8,4183.7,0.8108]
[1758593671683,16.69985042,4183.8,4183.7,0.8108]
[1758593671922,19.98783879,4183.8,4183.7,0.1232]
[1758593672087,25.9755516,4183.8,4183.7,0.004]
[1758593672291,18.71596476,4183.8,4183.7,0.4594]
[1758593672618,16.69989312,4183.8,4183.7,0.6916]
[1758593672994,12.67289312,4183.8,4183.7,0.6916]
[1758593673205,16.69989312,4183.8,4183.7,0.6916]
[1758593673516,16.47817161,4183.8,4183.7,0.6916]
[1758593673728,16.47817161,4183.8,4183.7,0.8108]
[1758593673881,12.45117161,4183.8,4183.7,0.8108]
[1758593674580,12.45117161,4183.8,4183.7,0.1232]
[1758593674787,20.77364794,4183.8,4183.7,0.1232]
[1758593676015,21.87830042,4183.8,4183.7,0.1232]
[1758593676216,21.52360621,4183.8,4183.7,0.1232]
[1758593676522,21.28440621,4183.8,4183.7,0.1232]
[1758593677387,21.50611471,4183.8,4183.7,0.1232]
[1758593678720,22.31134103,4183.8,4183.7,0.004]
[1758593678906,22.3113375,4183.8,4183.7,0.004]
[1758593679622,22.3113375,4183.8,4183.7,1e-08]
[1758593680010,24.3783375,4183.8,4183.7,1e-08]
[1758593680927,24.37829337,4183.8,4183.7,1e-08]
[1758593682099,24.37828619,4183.8,4183.7,1e-08]
[1758593684583,15.98950815,4183.8,4183.7,1e-08]
[1758593684787,13.31660986,4183.8,4183.7,0.68760001]
[1758593685177,16.98792988,4183.8,4183.7,0.80680001]
[1758593688163,16.47717161,4183.8,4183.7,0.80680001]
[1758593688392,12.45117161,4183.8,4183.7,0.80680001]
[1758593689104,16.47617161,4183.8,4183.7,0.80680001]
[1758593689398,16.98680882,4183.8,4183.7,0.80680001]
[1758593689597,16.47617161,4183.8,4183.7,0.80680001]
[1758593689963,16.98671612,4183.8,4183.7,0.80680001]
[1758593690470,12.45117161,4183.8,4183.7,0.80680001]
[1758593690677,16.47617161,4183.8,4183.7,0.80680001]
[1758593690892,16.98672532,4183.8,4183.7,0.80680001]
[1758593691192,16.47617161,4183.8,4183.7,0.80680001]
[1758593691718,16.98671087,4183.8,4183.7,0.11920001]
[1758593691897,19.42954847,4183.8,4183.7,0.11920001]
[1758593692921,19.42954062,4183.8,4183.7,0.11920001]
[1758593694786,19.66984062,4183.8,4183.7,0.11920001]
[1758593695020,19.66984062,4183.8,4183.7,1e-08]
[1758593695222,19.42954062,4183.8,4183.7,1e-08]
[1758593695394,19.42954062,4183.8,4183.7,0.47180001]
[1758593695589,19.56252155,4183.8,4183.7,0.47180001]
[1758593695926,19.42954062,4183.8,4183.7,1e-08]
[1758593696729,19.56252511,4183.8,4183.7,1e-08]
[1758593697428,19.78417081,4183.8,4183.7,1e-08]
[1758593697615,19.80282511,4183.8,4183.7,1e-08]
[1758593697809,20.02446684,4183.8,4183.7,1e-08]
[1758593698528,19.78416684,4183.8,4183.7,1e-08]
[1758593699327,19.78316684,4183.8,4183.7,1e-08]
[1758593699500,20.02346684,4183.8,4183.7,1e-08]
[1758593700929,19.78316684,4183.8,4183.7,1e-08]
[1758593701417,16.46006684,4183.8,4183.7,1e-08]
[1758593701623,20.02346684,4183.8,4183.7,1e-08]
[1758593701821,19.78316684,4183.8,4183.7,1e-08]
[1758593702121,19.42854062,4183.8,4183.7,1e-08]
[1758593702319,19.78324065,4183.8,4183.7,1e-08]
[1758593704603,15.75924065,4183.8,4183.7,1e-08]
[1758593704826,19.78324065,4183.8,4183.7,1e-08]
[1758593705230,20.02354065,4183.8,4183.7,1e-08]
[1758593706442,19.78324065,4183.8,4183.7,1e-08]
[1758593707206,3.86623144,4183.8,4183.7,0.71550001]
[1758593707405,0.001,4183.8,4183.7,0.83470001]
[1758593710047,2.39117161,4183.8,4183.7,0.83470001]
[1758593711044,0.001,4183.8,4183.7,0.83470001]
[1758593711560,2.39117161,4183.8,4183.7,0.11920001]
[1758593711742,9.89357224,4183.8,4183.7,1e-08]
[1758593711934,11.21941622,4183.8,4183.7,1e-08]
[1758593712116,11.85758049,4183.8,4183.7,1e-08]
[1758593712326,11.21941622,4183.8,4183.7,1e-08]
[1758593712655,5.39022874,4183.7,4183.6,1e-08]
[1758593712815,14.98629869,4183.7,4183.6,1e-08]
[1758593713021,15.68719869,4183.7,4183.6,1e-08]
[1758593714752,9.57677858,4183.7,4183.6,1e-08]
[1758593715060,19.64646695,4183.7,4183.6,1e-08]
[1758593715354,19.88676695,4183.7,4183.6,1e-08]
[1758593715723,20.33556695,4183.7,4183.6,1e-08]
[1758593716466,19.69739869,4183.7,4183.6,1e-08]
[1758593716979,15.67539869,4183.7,4183.6,1e-08]
[1758593717188,19.69839869,4183.7,4183.6,1e-08]
[1758593717551,20.33656695,4183.7,4183.6,1e-08]
[1758593718341,19.69839869,4183.7,4183.6,1e-08]
[1758593721882,19.81759869,4183.7,4183.6,1e-08]
[1758593722675,2.39028587,4183.6,4183.0,1e-08]
[1758593722884,5.39057158,4183.1,4183.0,1e-08]
[1758593723079,10.91492012,4183.1,4183.0,1e-08]
[1758593723404,10.95221556,4183.1,4183.0,1e-08]
[1758593723712,12.75186641,4183.1,4183.0,1e-08]
[1758593724252,3.0,4183.0,4182.5,0.1192]
[1758593724458,5.39091452,4182.5,4182.4,0.004]
[1758593724700,5.39091452,4182.5,4182.0,0.004]
[1758593724701,2.3911432,4182.1,4182.0,0.004]
[1758593724886,16.21178482,4182.1,4182.0,0.004]
[1758593725086,16.32917062,4182.1,4182.0,0.004]
[1758593725260,15.81851737,4182.1,4182.0,0.004]
[1758593726709,9.530529,4182.1,4182.0,0.004]
[1758593726919,11.48535783,4182.1,4182.0,0.004]
[1758593727413,5.3911432,4182.1,4182.0,0.4701]
[1758593727575,9.4131432,4182.1,4182.0,0.8162]
[1758593728271,5.3911432,4182.1,4182.0,0.8162]
[1758593728813,3.0,4182.1,4182.0,0.8162]
[1758593728987,0.11929559,4183.2,4182.1,0.792]
[1758593729191,2.067,4183.4,4182.1,0.792]
[1758593729192,4.022,4183.1,4182.2,0.693]
[1758593729381,2.39080584,4182.7,4182.3,0.693]
[1758593729577,4.022,4183.1,4182.4,0.71690971]
[1758593729782,4.022,4183.1,4182.4,0.02390971]
[1758593730007,2.39063854,4183.0,4182.5,0.693]
[1758593730240,2.39069303,4182.9,4182.6,0.693]
[1758593730579,2.39069303,4182.9,4182.7,0.693]
[1758593730900,2.39069303,4182.9,4182.8,0.693]
[1758593731213,2.39089034,4182.6,4182.5,0.693]
[1758593732077,2.39096237,4182.5,4182.0,0.796]
[1758593732282,2.39089034,4182.6,4182.3,0.2269]
[1758593732515,4.022,4182.9,4182.3,0.2269]
[1758593732516,2.39097169,4182.4,4182.3,0.2269]
[1758593732720,4.022,4182.8,4182.4,0.693]
[1758593732930,4.022,4182.8,4182.4,0.4661]
[1758593732931,2.39091452,4182.5,4182.4,0.4661]
[1758593733516,2.39091452,4182.5,4182.2,0.2269]
[1758593733517,3.0,4182.7,4182.0,0.004]
[1758593733724,2.39104051,4182.3,4182.1,0.2269]
[1758593734028,2.39104051,4182.3,4182.1,0.693]
[1758593734338,2.39104051,4182.3,4182.2,0.693]
[1758593734534,2.3911432,4182.1,4182.0,0.004]
[1758593734902,2.3911432,4182.1,4182.0,0.4701]
[1758593735333,2.3911432,4182.1,4182.0,0.004]
[1758593735541,6.6387432,4182.1,4182.0,0.004]
[1758593736049,10.0875432,4182.1,4182.0,0.004]
[1758593736220,12.06359133,4182.1,4182.0,0.004]
[1758593739729,12.57251692,4182.1,4182.0,0.004]
[1758593739933,12.57249991,4182.1,4182.0,0.004]
[1758593740842,12.70506675,4182.1,4182.0,0.004]
[1758593741044,12.57249991,4182.1,4182.0,0.004]
[1758593741563,13.04540468,4182.1,4182.0,0.004]
[1758593742268,13.04540468,4182.1,4182.0,1e-08]
[1758593742770,13.04540468,4182.1,4181.5,0.004]
[1758593743072,12.67332666,4181.6,4181.5,1e-08]